bitfinex-derivatives/quotes_BTCF0:USTF0_20251023
["timestamp","ask_amount","ask_price","bid_price","bid_amount"]
[1761226414364,0.1415223,109190.0,109170.0,0.34825058]
[1761226414563,0.1415223,109190.0,109170.0,0.1358247]
[1761226414767,0.1505707,109180.0,109170.0,0.1358247]
[1761226415073,0.05999,109180.0,109170.0,0.1358247]
[1761226415370,0.1515707,109180.0,109170.0,0.1358247]
[1761226415870,0.05999,109180.0,109170.0,0.1358247]
[1761226416071,0.0973755,109190.0,109180.0,0.1358207]
[1761226416072,0.1425255,109190.0,109180.0,0.1358207]
[1761226416371,0.0973755,109190.0,109180.0,0.1358207]
[1761226416560,0.0136,109200.0,109180.0,0.1358207]
[1761226416561,0.0915561,109210.0,109200.0,0.1129335]
[1761226416873,0.2667061,109210.0,109200.0,0.04424]
[1761226417169,0.2667056,109210.0,109200.0,0.1358039]
[1761226417565,0.2667056,109210.0,109200.0,0.04424]
[1761226417867,0.1505539,109200.0,109190.0,0.4181304]
[1761226418059,0.1505539,109200.0,109190.0,0.32656]
[1761226418874,0.1505539,109200.0,109190.0,0.4623723]
[1761226419075,0.1505539,109200.0,109190.0,0.3708]
[1761226419277,0.1505539,109200.0,109190.0,0.32656]
[1761226419472,0.0915723,109190.0,109180.0,0.04424]
[1761226419774,0.04515,109180.0,109170.0,0.4623054]
[1761226419969,0.1367307,109180.0,109170.0,0.4623054]
[1761226420174,0.1505707,109180.0,109170.0,0.4623054]
[1761226420972,0.04515,109180.0,109170.0,0.4623054]
[1761226421478,0.1377275,109190.0,109180.0,0.1358207]
[1761226422276,0.05899,109180.0,109170.0,0.4623046]
[1761226422471,0.04515,109180.0,109170.0,0.4623046]
[1761226422773,0.1134507,109180.0,109170.0,0.4623046]
[1761226423277,0.1505707,109180.0,109170.0,0.4623046]
[1761226423472,0.05899,109180.0,109170.0,0.4623046]
[1761226423779,0.1377272,109190.0,109180.0,0.1358207]
[1761226424082,0.1377272,109190.0,109180.0,0.04424]
[1761226424574,0.1054085,109200.0,109180.0,0.1486207]
[1761226424770,0.1505585,109200.0,109190.0,0.1358123]
[1761226425166,0.04515,109210.0,109200.0,0.1358018]
[1761226425380,0.0915556,109210.0,109200.0,0.40839938]
[1761226425574,0.1367056,109210.0,109200.0,0.1358039]
[1761226427774,0.1387056,109210.0,109200.0,0.1358039]
[1761226430778,0.002,109210.0,109200.0,0.1440839]
[1761226431170,0.0048,109230.0,109200.0,0.89996328]
[1761226431378,0.1182088,109230.0,109220.0,0.04424]
[1761226431575,0.05899,109220.0,109210.0,0.4619487]
[1761226432174,0.02667,109230.0,109220.0,0.1357872]
[1761226432383,0.1505091,109260.0,109250.0,0.135762]
[1761226432580,0.0048,109270.0,109260.0,0.1357537]
[1761226432581,0.0963053,109270.0,109260.0,0.1357537]
[1761226432780,0.2995353,109270.0,109260.0,0.04424]
[1761226432980,0.2995353,109270.0,109260.0,0.02137]
[1761226433181,0.2995353,109270.0,109260.0,0.1351037]
[1761226433581,0.2995353,109270.0,109260.0,0.1128837]
[1761226433780,0.2995353,109270.0,109260.0,0.1351037]
[1761226434388,0.20803,109270.0,109260.0,0.1351037]
[1761226434582,0.1648,109270.0,109260.0,0.1479037]
[1761226434789,0.0078,109270.0,109260.0,0.4743037]
[1761226435191,0.0078,109270.0,109260.0,0.83018308]
[1761226435693,0.1340503,109300.0,109290.0,0.04373]
[1761226435883,0.2668803,109300.0,109290.0,0.04373]
[1761226436282,0.1754,109300.0,109290.0,0.1352185]
[1761226436585,0.0962767,109310.0,109290.0,0.89109788]
[1761226436893,0.0914718,109310.0,109300.0,0.4743702]
[1761226437186,0.0914679,109320.0,109310.0,0.1129818]
[1761226437377,0.0914679,109320.0,109310.0,0.04373]
[1761226437584,0.1340379,109320.0,109310.0,0.04373]
[1761226437979,0.1126651,109330.0,109310.0,0.1352018]
[1761226438187,0.26,109330.0,109320.0,0.37069]
[1761226438377,0.2140251,109330.0,109320.0,0.04373]
[1761226438582,0.2140251,109330.0,109320.0,0.37093]
[1761226439388,0.1388125,109350.0,109340.0,0.1351767]
[1761226439586,0.51737,109350.0,109340.0,0.1351767]
[1761226439778,0.0048,109350.0,109340.0,0.4752167]
[1761226440178,0.0048,109350.0,109340.0,0.83109608]
[1761226440388,0.1468316,109360.0,109340.0,0.37109]
[1761226440594,0.0554,109360.0,109340.0,0.37109]
[1761226440781,0.0554,109360.0,109330.0,0.02222]
[1761226440782,0.1468467,109340.0,109330.0,0.02222]
[1761226440984,0.1468467,109340.0,109310.0,0.135196]
[1761226441183,0.1468634,109320.0,109300.0,0.1129828]
[1761226441482,0.02121,109330.0,109320.0,0.1129697]
[1761226441690,0.4530869,109340.0,109320.0,0.1351897]
[1761226441999,0.04257,109330.0,109320.0,0.1351934]
[1761226442195,0.02121,109330.0,109320.0,0.1351934]
[1761226442493,0.146851,109340.0,109320.0,0.1351934]
[1761226442792,0.0914551,109330.0,109320.0,0.04373]
[1761226442988,0.1340251,109330.0,109310.0,0.1129817]
[1761226443183,0.1468634,109320.0,109310.0,0.1129817]
[1761226443391,0.1468634,109320.0,109310.0,0.02151]
[1761226443698,0.1468634,109320.0,109300.0,0.46742016]
[1761226443899,0.1340418,109310.0,109300.0,0.00457436]
[1761226444288,0.5340418,109310.0,109300.0,0.00457436]
[1761226444599,0.5640418,109310.0,109300.0,0.00457436]
[1761226444795,0.91992118,109310.0,109300.0,0.00457436]
[1761226444995,0.5640418,109310.0,109300.0,0.00457436]
[1761226445188,0.1640418,109310.0,109300.0,0.02608436]
[1761226445489,0.37025,109310.0,109300.0,0.13978456]
[1761226445697,1.21760118,109310.0,109300.0,0.00457436]
[1761226445890,0.8617218,109310.0,109300.0,0.00457436]
[1761226446295,0.1340418,109310.0,109300.0,0.00657436]
[1761226446491,0.4414818,109310.0,109300.0,0.14178456]
[1761226446983,0.35001,109310.0,109300.0,0.14178456]
[1761226447188,0.1042977,109320.0,109310.0,0.1352018]
[1761226447189,0.04257,109320.0,109310.0,0.1352018]
[1761226447492,0.1126734,109320.0,109310.0,0.1352018]
[1761226447696,0.1468634,109320.0,109310.0,0.1352018]
[1761226447902,0.0554,109320.0,109310.0,0.1352018]
[1761226448096,0.04257,109320.0,109310.0,0.1352018]
[1761226448602,0.1468498,109340.0,109330.0,0.1129652]
[1761226448898,0.4068498,109340.0,109330.0,0.1129652]
[1761226449097,0.4068498,109340.0,109330.0,0.1351852]
[1761226449293,0.0914551,109330.0,109320.0,0.1129683]
[1761226449499,0.1340251,109330.0,109320.0,0.0914583]
[1761226449699,0.1340251,109330.0,109320.0,0.1351883]
[1761226449900,0.04257,109330.0,109320.0,0.1351883]
[1761226450289,0.1468528,109340.0,109330.0,0.1129651]
[1761226450596,0.1468528,109340.0,109330.0,0.1351851]
[1761226450597,0.2654,109340.0,109330.0,0.1351851]
[1761226450806,0.1468307,109360.0,109350.0,0.1351684]
[1761226451001,0.0854,109360.0,109350.0,0.1351684]
[1761226451303,0.1768301,109360.0,109350.0,0.1351684]
[1761226452086,0.0914384,109350.0,109340.0,0.1351746]
[1761226452308,0.1340084,109350.0,109340.0,0.1351746]
[1761226452494,0.03404,109340.0,109330.0,0.1351805]
[1761226452695,0.0914384,109350.0,109320.0,0.69651938]
[1761226452696,0.1340084,109350.0,109340.0,0.1351768]
[1761226452883,0.0914468,109340.0,109330.0,0.1351792]
[1761226453089,0.1468468,109340.0,109330.0,0.1351792]
[1761226453286,0.1468468,109340.0,109330.0,0.1129652]
[1761226453490,0.0554,109340.0,109330.0,0.1351852]
[1761226453696,0.1340168,109340.0,109330.0,0.1351852]
[1761226453891,0.1468468,109340.0,109330.0,0.1351852]
[1761226454296,0.32792,109350.0,109330.0,0.1351796]
[1761226454297,0.1340084,109350.0,109330.0,0.1351796]
[1761226454592,0.0554,109340.0,109330.0,0.1351796]
[1761226455000,0.1340252,109330.0,109320.0,0.1351923]
[1761226455411,0.1468529,109340.0,109330.0,0.1351851]
[1761226455594,0.1340229,109340.0,109330.0,0.1351851]
[1761226455896,0.1468529,109340.0,109330.0,0.04373]
[1761226456200,0.1468529,109340.0,109330.0,0.1351851]
[1761226456798,0.1340285,109330.0,109320.0,0.0914635]
[1761226457098,0.1340335,109320.0,109310.0,0.1351965]
[1761226457402,0.46015628,109340.0,109320.0,0.1351935]
[1761226457403,0.1340302,109330.0,109320.0,0.1351935]
[1761226458597,0.1340302,109330.0,109320.0,0.1361935]
[1761226459194,0.04257,109330.0,109320.0,0.1361935]
[1761226459592,0.1340252,109330.0,109320.0,0.1351935]
[1761226459801,0.1126652,109330.0,109320.0,0.1351935]
[1761226460010,0.1468524,109340.0,109330.0,0.1351852]
[1761226460311,0.04257,109340.0,109330.0,0.1351852]
[1761226460600,0.4140168,109340.0,109300.0,0.31298499]
[1761226460804,0.1340419,109310.0,109300.0,0.07261749]
[1761226460996,0.1340419,109310.0,109300.0,0.37630436]
[1761226461304,0.1340419,109310.0,109300.0,0.46778466]
[1761226461496,0.1340419,109310.0,109300.0,0.37630436]
[1761226461694,0.1340419,109310.0,109300.0,0.44548466]
[1761226462101,0.1340419,109310.0,109300.0,0.82358404]
[1761226462102,0.02121,109310.0,109300.0,0.82358404]
[1761226462305,0.104299,109320.0,109300.0,0.82358404]
[1761226462598,0.55161078,109340.0,109320.0,0.1351936]
[1761226462599,0.02121,109330.0,109320.0,0.1351936]
[1761226462800,0.05806,109340.0,109330.0,0.1362252]
[1761226463001,0.1366852,109330.0,109320.0,0.37269]
[1761226463192,0.0914552,109330.0,109320.0,0.4641536]
[1761226463593,0.1366852,109330.0,109320.0,0.4641536]
[1761226463791,0.1366852,109330.0,109320.0,0.1362336]
[1761226463996,0.1366852,109330.0,109320.0,0.4643536]
[1761226464197,0.1042805,109340.0,109320.0,0.4643536]
[1761226464400,0.1366805,109340.0,109330.0,0.1362252]
[1761226464600,0.04523,109340.0,109330.0,0.16053833]
[1761226464996,0.1500169,109340.0,109320.0,0.47630973]
[1761226465203,0.01334,109320.0,109310.0,0.05673063]
[1761226465401,0.136702,109310.0,109300.0,0.06130499]
[1761226465596,0.136702,109310.0,109300.0,0.02888749]
[1761226465802,0.136702,109310.0,109300.0,0.12036779]
[1761226465997,0.136702,109310.0,109300.0,0.02888749]
[1761226466207,0.136702,109310.0,109300.0,0.35700749]
[1761226466409,0.136702,109310.0,109300.0,0.37964749]
[1761226466601,0.136702,109310.0,109300.0,0.33269436]
[1761226466802,0.136702,109310.0,109300.0,0.44681466]
[1761226466997,0.04523,109310.0,109300.0,0.44781466]
[1761226467195,0.01334,109320.0,109300.0,0.82539404]
[1761226467396,0.1349094,109330.0,109310.0,0.49169128]
[1761226467595,0.1349094,109330.0,109310.0,0.51626735]
[1761226467819,0.1349094,109330.0,109320.0,0.04434]
[1761226468001,0.1349094,109330.0,109320.0,0.1358036]
[1761226468198,0.1349094,109330.0,109320.0,0.32816]
[1761226468404,0.1349094,109330.0,109310.0,7e-08]
[1761226468405,0.1729936,109320.0,109310.0,7e-08]
[1761226468599,0.134922,109310.0,109300.0,0.00557436]
[1761226468799,0.134922,109310.0,109300.0,0.37923436]
[1761226469002,0.534922,109310.0,109300.0,0.00457436]
[1761226469208,0.93080138,109310.0,109300.0,0.00457436]
[1761226469507,0.96328178,109310.0,109300.0,0.00457436]
[1761226469701,1.01328178,109310.0,109300.0,0.00457436]
[1761226469903,1.24328178,109310.0,109300.0,0.00457436]
[1761226470109,1.29272178,109310.0,109300.0,0.00557436]
[1761226470607,0.5368424,109310.0,109300.0,0.00557436]
[1761226470811,0.464362,109310.0,109300.0,0.00557436]
[1761226471111,0.134922,109310.0,109300.0,0.00557436]
[1761226471611,0.134922,109310.0,109300.0,0.04991436]
[1761226471908,0.134922,109310.0,109300.0,0.00557436]
[1761226472810,0.91080138,109310.0,109300.0,0.00557436]
[1761226473210,0.554922,109310.0,109300.0,0.00557436]
[1761226473997,0.804922,109310.0,109300.0,0.00557436]
[1761226474219,1.49040138,109310.0,109300.0,0.00422188]
[1761226474406,1.24040138,109310.0,109300.0,0.00422188]
[1761226474912,0.484522,109310.0,109300.0,0.00422188]
[1761226475615,1.24040138,109310.0,109300.0,0.00422188]
[1761226476012,0.884522,109310.0,109300.0,0.00422188]
[1761226476509,0.464522,109310.0,109300.0,0.09570218]
[1761226476715,0.134922,109310.0,109300.0,0.14004218]
[1761226477099,0.113332,109310.0,109300.0,0.49592156]
[1761226477305,0.04345,109320.0,109310.0,0.135812]
[1761226477511,0.49604228,109350.0,109310.0,0.135812]
[1761226477512,0.081201,109350.0,109340.0,0.1485869]
[1761226477709,0.0453104,109380.0,109360.0,0.0914301]
[1761226478010,0.04345,109370.0,109360.0,0.33112]
[1761226478227,0.05663,109360.0,109350.0,0.33108]
[1761226478405,0.05663,109360.0,109350.0,0.02198535]
[1761226478607,0.05663,109360.0,109350.0,0.01346467]
[1761226478608,0.06663,109360.0,109350.0,0.01346467]
[1761226478803,0.05663,109360.0,109350.0,0.01345554]
[1761226479014,0.05663,109360.0,109340.0,0.0914462]
[1761226479206,0.05663,109360.0,109330.0,0.4452551]
[1761226479401,0.05663,109360.0,109340.0,0.0914463]
[1761226479607,0.05663,109360.0,109340.0,0.1140863]
[1761226479914,0.05663,109360.0,109350.0,0.0914385]
[1761226480315,0.05663,109360.0,109340.0,0.0914429]
[1761226480515,0.05663,109360.0,109350.0,0.0914385]
[1761226480713,0.05663,109360.0,109350.0,0.04462385]
[1761226480921,0.05663,109360.0,109350.0,0.02198385]
[1761226481110,0.05663,109360.0,109340.0,0.0914459]
[1761226481309,0.05663,109360.0,109340.0,0.11343234]
[1761226481510,0.26844868,109360.0,109340.0,0.02198594]
[1761226481807,0.07663,109360.0,109340.0,0.03547883]
[1761226482011,0.07663,109360.0,109340.0,0.12692473]
[1761226482525,0.07663,109360.0,109340.0,0.05811883]
[1761226483317,0.07663,109360.0,109340.0,0.13607244]
[1761226483615,0.07663,109360.0,109340.0,0.02198594]
[1761226483818,0.07663,109360.0,109340.0,0.34789142]
[1761226484017,0.05663,109360.0,109350.0,0.0914385]
[1761226484428,0.05663,109360.0,109340.0,0.0914453]
[1761226484606,0.05663,109360.0,109340.0,0.11343215]
[1761226484807,0.05663,109360.0,109340.0,0.15777215]
[1761226484808,0.1348885,109350.0,109340.0,0.15777215]
[1761226485006,0.1046138,109360.0,109350.0,0.0914385]
[1761226485209,0.1046138,109360.0,109350.0,0.1357785]
[1761226485210,0.1348838,109360.0,109350.0,0.1357785]
[1761226485924,0.0914385,109350.0,109340.0,0.09144]
[1761226486114,0.1348885,109350.0,109340.0,0.15776029]
[1761226486315,0.1348885,109350.0,109340.0,0.13606029]
[1761226486511,0.1348885,109350.0,109340.0,0.11342029]
[1761226486713,0.1348885,109350.0,109340.0,0.15776029]
[1761226486912,0.1348885,109350.0,109340.0,0.13606719]
[1761226487116,0.1348969,109340.0,109330.0,0.0914541]
[1761226487320,0.1480769,109340.0,109330.0,0.12691113]
[1761226487715,0.1133069,109340.0,109330.0,0.17125113]
[1761226487910,0.134894,109350.0,109340.0,0.1140869]
[1761226488122,0.134894,109350.0,109340.0,0.14925963]
[1761226488517,0.134894,109350.0,109340.0,0.05781273]
[1761226488726,0.134894,109350.0,109340.0,0.14925963]
[1761226488923,0.134894,109350.0,109340.0,0.1357869]
[1761226489626,0.134894,109350.0,109340.0,0.04434]
[1761226489821,0.134894,109350.0,109340.0,0.05779007]
[1761226490027,0.134894,109350.0,109340.0,0.01345007]
[1761226490326,0.534894,109350.0,109340.0,0.01345007]
[1761226490826,0.134894,109350.0,109340.0,0.01345007]
[1761226491523,0.75671268,109350.0,109340.0,0.01345007]
[1761226492016,1.61711268,109350.0,109340.0,0.01345007]
[1761226492619,1.405294,109350.0,109340.0,0.01345007]
[1761226492821,1.005294,109350.0,109340.0,0.01345007]
[1761226493218,0.825294,109350.0,109340.0,0.05805007]
[1761226493418,0.825294,109350.0,109340.0,0.14949687]
[1761226493736,0.1268471,109360.0,109350.0,0.0914385]
[1761226493918,0.1491871,109360.0,109350.0,0.04508]
[1761226494121,0.04457,109360.0,109350.0,0.34833718]
[1761226494324,0.34311,109380.0,109360.0,0.1365089]
[1761226494521,0.1184394,109390.0,109370.0,0.1365018]
[1761226494718,0.05854,109380.0,109370.0,0.04508]
[1761226494919,0.05854,109380.0,109360.0,0.4669484]
[1761226495129,0.05854,109380.0,109370.0,0.0914218]
[1761226495526,0.04457,109380.0,109370.0,0.34832048]
[1761226495828,0.04457,109380.0,109370.0,0.1365018]
[1761226496028,0.04457,109380.0,109360.0,0.54225868]
[1761226496029,0.04937,109390.0,109380.0,0.0914134]
[1761226496223,0.04937,109390.0,109380.0,0.1145334]
[1761226496627,0.04937,109390.0,109380.0,0.1364934]
[1761226496819,0.0048,109390.0,109380.0,0.1364934]
[1761226497022,0.04937,109390.0,109380.0,0.34831208]
[1761226497226,0.0619006,109420.0,109410.0,0.02312]
[1761226497429,0.0535206,109430.0,109410.0,0.67908698]
[1761226497633,0.00348037,109430.0,109420.0,0.36107868]
[1761226497927,0.0487206,109440.0,109420.0,0.36107868]
[1761226497928,0.22578868,109460.0,109420.0,0.04508]
[1761226498127,0.04457,109430.0,109410.0,0.4224277]
[1761226498329,0.04457,109430.0,109410.0,0.44510821]
[1761226498526,0.04457,109430.0,109410.0,0.46822821]
[1761226498728,0.04457,109430.0,109420.0,0.04508]
[1761226498729,0.02223,109430.0,109420.0,0.04508]
[1761226499028,0.04457,109430.0,109410.0,0.4455448]
[1761226499226,0.01397,109420.0,109380.0,0.01285101]
[1761226499425,0.22578868,109420.0,109390.0,0.13648]
[1761226499626,0.04457,109410.0,109390.0,0.0914014]
[1761226499827,0.04457,109410.0,109380.0,0.26410331]
[1761226500024,0.04457,109390.0,109380.0,0.00457101]
[1761226500231,0.04457,109390.0,109380.0,0.04965101]
[1761226500536,0.77597,109390.0,109380.0,0.00457101]
[1761226500932,0.37597,109390.0,109380.0,0.02769101]
[1761226501130,0.135975,109390.0,109380.0,0.00457101]
[1761226501630,0.0914002,109400.0,109380.0,0.35288319]
[1761226501839,0.1359751,109390.0,109380.0,0.00457101]
[1761226502133,0.4672951,109390.0,109380.0,0.00457101]
[1761226502333,0.67911378,109390.0,109380.0,0.00457101]
[1761226502535,0.1499535,109380.0,109370.0,7.489e-05]
[1761226502734,0.1499535,109380.0,109340.0,0.00457268]
[1761226502735,0.1360086,109350.0,109340.0,0.00457268]
[1761226503052,0.1360086,109350.0,109340.0,0.0180127]
[1761226503234,0.75782728,109350.0,109340.0,0.0180127]
[1761226503635,0.54608349,109350.0,109340.0,0.0180127]
[1761226503831,0.11374349,109350.0,109340.0,0.0630927]
[1761226504033,0.35374489,109350.0,109340.0,0.1565396]
[1761226504229,0.02230489,109350.0,109340.0,0.35491826]
[1761226504434,7.489e-05,109350.0,109340.0,0.76771826]
[1761226504832,7.489e-05,109350.0,109340.0,0.79044917]
[1761226505036,0.01397,109380.0,109350.0,0.091434]
[1761226505235,0.01397,109380.0,109360.0,0.21181868]
[1761226505433,0.04457,109370.0,109360.0,0.21181868]
[1761226505633,0.04457,109370.0,109350.0,0.30325268]
[1761226506029,0.02223,109350.0,109340.0,0.09601538]
[1761226506238,0.04457,109350.0,109340.0,0.00457268]
[1761226506841,0.04457,109350.0,109340.0,0.0180283]
[1761226507435,0.04457,109350.0,109320.0,0.30327588]
[1761226507436,0.01397,109340.0,109300.0,0.00322188]
[1761226507634,0.04457,109310.0,109300.0,0.00322188]
[1761226507830,0.04457,109310.0,109300.0,0.09470228]
[1761226508340,0.3316,109330.0,109310.0,0.04508]
[1761226508537,0.3316,109330.0,109300.0,0.21504056]
[1761226508538,0.04457,109320.0,109300.0,0.21504056]
[1761226508741,0.25638868,109320.0,109300.0,0.09470078]
[1761226508934,0.04457,109320.0,109300.0,0.09470078]
[1761226509144,0.04457,109320.0,109300.0,0.00322188]
[1761226509449,0.25638868,109310.0,109300.0,0.00322188]
[1761226509636,0.60806868,109310.0,109300.0,0.00322188]
[1761226509834,0.60806868,109310.0,109300.0,0.00622188]
[1761226510030,1.10806868,109310.0,109300.0,0.00622188]
[1761226510337,1.00806868,109310.0,109300.0,0.002]
[1761226510544,0.06457,109310.0,109300.0,0.002]
[1761226510740,0.39621,109310.0,109300.0,0.002]
[1761226510945,1.00802868,109310.0,109280.0,0.09158687]
[1761226511243,0.60802868,109310.0,109280.0,0.11437574]
[1761226511538,0.37617,109310.0,109290.0,0.0914887]
[1761226511933,0.04457,109310.0,109300.0,0.1146004]
[1761226512143,0.01397,109340.0,109320.0,0.0914634]
[1761226512336,0.62762868,109340.0,109310.0,0.0914663]
[1761226512538,0.04457,109320.0,109310.0,0.0914663]
[1761226512743,0.02223,109330.0,109320.0,0.0914576]
[1761226513131,0.02223,109330.0,109320.0,0.1145776]
[1761226513343,0.04457,109330.0,109320.0,0.1145837]
[1761226513536,0.04457,109330.0,109290.0,0.4637439]
[1761226513843,0.04457,109330.0,109310.0,0.0914703]
[1761226514032,0.04457,109330.0,109310.0,0.11418856]
[1761226514235,0.02223,109330.0,109320.0,0.32640238]
[1761226514439,0.02223,109340.0,109330.0,0.02312]
[1761226514645,0.25638868,109340.0,109320.0,0.0914634]
[1761226514833,0.04457,109340.0,109320.0,0.001]
[1761226515032,0.25638868,109330.0,109320.0,0.001]
[1761226515233,0.30638868,109330.0,109320.0,0.001]
[1761226515444,1.03806868,109330.0,109320.0,0.001]
[1761226515730,1.04806868,109330.0,109320.0,0.001]
[1761226515931,1.00806868,109330.0,109320.0,0.001]
[1761226516135,0.04457,109330.0,109320.0,0.001]
[1761226516336,0.04457,109330.0,109320.0,0.0914637]
[1761226516737,0.04457,109330.0,109310.0,0.0914669]
[1761226517050,0.05854,109320.0,109310.0,0.11417976]
[1761226517348,0.05854,109320.0,109310.0,0.0914669]
[1761226518142,0.05854,109320.0,109310.0,0.1145869]
[1761226518435,0.21181868,109330.0,109320.0,0.0914637]
[1761226518436,0.04457,109330.0,109320.0,0.0914637]
[1761226518640,0.04457,109330.0,109310.0,0.0914693]
[1761226518942,0.05854,109320.0,109310.0,0.11417801]
[1761226519143,0.05854,109320.0,109310.0,0.02270871]
[1761226519349,0.05854,109320.0,109310.0,0.11418081]
[1761226519950,0.05854,109320.0,109310.0,0.02270871]
[1761226520255,1.28373736,109320.0,109290.0,0.0914888]
[1761226520450,0.05854,109300.0,109280.0,0.09158397]
[1761226520655,0.21181868,109330.0,109320.0,0.02196]
[1761226520951,0.27035868,109340.0,109310.0,0.0914669]
[1761226521152,0.61243868,109340.0,109310.0,0.11429606]
[1761226521452,0.04457,109320.0,109310.0,0.13741806]
[1761226521840,0.55786868,109340.0,109330.0,0.0914553]
[1761226521841,0.36828,109340.0,109330.0,0.0914553]
[1761226522151,0.39062,109340.0,109320.0,0.0914582]
[1761226522450,0.39062,109340.0,109320.0,0.1142837]
[1761226522947,0.60243868,109340.0,109320.0,0.0914582]
[1761226523146,0.60243868,109340.0,109300.0,0.31609908]
[1761226523340,0.60243868,109340.0,109320.0,0.0914626]
[1761226523535,0.39062,109340.0,109320.0,0.0914626]
[1761226523751,0.87243868,109340.0,109310.0,0.0914677]
[1761226523954,0.60243868,109340.0,109320.0,0.0914628]
[1761226524251,0.39062,109340.0,109320.0,0.0914579]
[1761226524836,0.39062,109340.0,109320.0,0.0914596]
[1761226525245,0.86243868,109340.0,109310.0,0.30328668]
[1761226525453,0.05811,109320.0,109310.0,0.0914718]
[1761226525658,0.04511,109320.0,109310.0,0.1368718]
[1761226526347,0.02281,109330.0,109320.0,0.1368621]
[1761226526643,0.34605,109340.0,109330.0,0.1368553]
[1761226526644,0.33208,109340.0,109330.0,0.1368553]
[1761226526846,0.35489,109340.0,109330.0,0.1368553]
[1761226527045,0.37719,109340.0,109310.0,0.39576228]
[1761226527354,0.39019,109340.0,109320.0,0.0914579]
[1761226527546,0.60200868,109340.0,109320.0,0.02282786]
[1761226527749,0.60200868,109340.0,109300.0,0.34851148]
[1761226527750,0.03581,109320.0,109310.0,0.0914685]
[1761226527961,0.05811,109320.0,109310.0,0.11431851]
[1761226528457,0.05811,109320.0,109310.0,0.02284641]
[1761226528662,1.00156868,109320.0,109290.0,0.0914834]
[1761226528951,1.00156868,109320.0,109290.0,0.03634251]
[1761226528952,0.05811,109300.0,109290.0,0.03634251]
[1761226529658,0.38979,109300.0,109290.0,0.03634251]
[1761226529967,0.013,109320.0,109290.0,0.33964499]
[1761226530149,0.04511,109310.0,109300.0,0.21181868]
[1761226530456,0.04511,109310.0,109300.0,0.02292995]
[1761226530651,0.44511,109310.0,109300.0,0.02292979]
[1761226530852,0.67692868,109310.0,109300.0,0.01347634]
[1761226531059,0.04511,109310.0,109300.0,0.01347634]
[1761226531252,0.04511,109310.0,109300.0,0.03624634]
[1761226531447,0.04511,109310.0,109300.0,0.02277]
[1761226531646,0.04511,109310.0,109290.0,0.30330408]
[1761226531852,0.04511,109310.0,109290.0,0.32624516]
[1761226532155,0.34508,109320.0,109290.0,0.32624516]
[1761226532156,0.39019,109320.0,109310.0,0.1368721]
[1761226532460,0.39019,109320.0,109310.0,0.15982522]
[1761226532662,0.39019,109320.0,109310.0,0.02295312]
[1761226532853,0.39019,109320.0,109310.0,0.11442522]
[1761226533170,0.04511,109320.0,109310.0,0.15982522]
[1761226533352,0.33192,109330.0,109310.0,0.38482254]
[1761226533547,0.04511,109320.0,109310.0,0.38482254]
[1761226533753,0.05811,109320.0,109310.0,0.17300386]
[1761226534054,0.05811,109320.0,109310.0,0.37164626]
[1761226534258,0.05811,109320.0,109310.0,0.3848268]
[1761226534456,0.013,109340.0,109320.0,0.0914563]
[1761226534656,0.013,109340.0,109320.0,0.32623046]
[1761226534863,0.013,109340.0,109320.0,0.15035972]
[1761226534864,0.04511,109330.0,109320.0,0.15035972]
[1761226535253,0.04511,109330.0,109320.0,0.05890342]
[1761226535456,0.04511,109330.0,109320.0,0.04572548]
[1761226535762,0.04511,109330.0,109320.0,0.15981918]
[1761226536367,0.04511,109330.0,109320.0,0.17300416]
[1761226536663,0.04511,109330.0,109320.0,0.08154046]
[1761226536860,0.04511,109330.0,109320.0,0.17300416]
[1761226537159,0.04511,109330.0,109320.0,0.03614046]
[1761226537660,0.98856868,109330.0,109320.0,0.03614046]
[1761226537859,1.00856868,109330.0,109320.0,0.03614046]
[1761226538058,1.00856868,109330.0,109320.0,0.17300416]
[1761226538059,0.39675,109330.0,109320.0,0.17300416]
[1761226538359,0.34464,109340.0,109320.0,0.38482284]
[1761226538663,0.34464,109340.0,109320.0,0.17300416]
[1761226538860,0.04511,109330.0,109320.0,0.06059939]
[1761226539055,0.04511,109330.0,109320.0,0.03614046]
[1761226539260,0.04511,109330.0,109320.0,0.40928177]
[1761226539460,0.36745,109340.0,109320.0,0.40928177]
[1761226539761,0.0048,109350.0,109320.0,0.10599939]
[1761226539961,0.0048,109350.0,109340.0,0.36146568]
[1761226540165,0.0048,109350.0,109340.0,0.39760614]
[1761226540365,0.0048,109350.0,109340.0,0.43002364]
[1761226540567,0.04511,109370.0,109360.0,0.0914301]
[1761226540752,0.22481868,109380.0,109360.0,0.08154046]
[1761226540753,0.013,109380.0,109360.0,0.08154046]
[1761226541065,0.39255,109380.0,109370.0,0.0914219]
[1761226541264,0.0048,109390.0,109380.0,0.1368135]
[1761226541467,0.0048,109390.0,109380.0,0.17291966]
[1761226541468,0.0848,109390.0,109380.0,0.17291966]
[1761226541863,0.0048,109390.0,109380.0,0.17291966]
[1761226542369,0.3474,109420.0,109400.0,0.0913931]
[1761226542569,0.04511,109410.0,109400.0,0.10457808]
[1761226542860,0.04511,109410.0,109400.0,0.01318498]
[1761226543166,0.04511,109410.0,109400.0,0.14998178]
[1761226543468,0.013,109420.0,109400.0,0.14998178]
[1761226543761,0.02281,109410.0,109400.0,0.14998178]
[1761226543966,0.04511,109410.0,109400.0,0.05858498]
[1761226544176,0.04511,109410.0,109400.0,0.01318498]
[1761226545363,0.80997118,109410.0,109400.0,0.01318498]
[1761226545563,0.45511,109410.0,109400.0,0.01318498]
[1761226545862,0.80997118,109410.0,109400.0,0.01318498]
[1761226546070,0.80997118,109410.0,109360.0,0.0914248]
[1761226546071,0.013,109400.0,109360.0,0.0914248]
[1761226546270,0.04511,109380.0,109370.0,0.02277]
[1761226546577,0.05811,109380.0,109370.0,0.02277]
[1761226546773,0.05811,109380.0,109360.0,0.0914256]
[1761226547069,0.05811,109380.0,109370.0,0.0914219]
[1761226547262,0.05811,109380.0,109370.0,0.11424657]
[1761226547569,0.05811,109380.0,109360.0,0.0914259]
[1761226547771,0.05811,109380.0,109370.0,0.0914219]
[1761226548068,0.36786118,109400.0,109370.0,0.0914219]
[1761226548069,0.013,109420.0,109400.0,0.0913933]
[1761226548271,0.013,109420.0,109410.0,0.02277]
[1761226548272,0.83191,109420.0,109410.0,0.02277]
[1761226548561,0.23811,109420.0,109410.0,0.02277]
[1761226548869,1.32681118,109420.0,109390.0,0.0914008]
[1761226549054,0.57195,109420.0,109380.0,0.36314118]
[1761226549366,0.57195,109420.0,109390.0,0.0914052]
[1761226549567,0.3338,109410.0,109400.0,0.1367919]